Workbook

Sheet Accueil
F2: EXERCICES DE SUIVI DU PACC 2013-2020
F5: 2018-06-01
B10: Bienvenue dans votre fiche de suivi du Plan d'action 2013-2020 sur les changements climatiques!
B13: Indications spécifiques à l'exercice de juin 2018
B14: Date limite : | C14: 2018-06-22
B15: → Les informations financières doivent être en date du 2018-03-31
B16: → Veuillez utiliser l'outil de validation sur votre fiche avant de la retourner. Un bouton à cet effet a été ajouté dans les différents onglets.
B17: → Veuillez garder la fiche en format xlsm afin de pouvoir profiter des nouveaux outils conviviaux.
B18: → Besoin d'assistance? Veuillez écrire à l'adresse suivante en spécifiant votre question et vos coordonnées :
B19: direction.executive@cgfv.gouv.qc.ca
B20: → Avant de débuter l'exercice, veuillez vérifier et compléter au besoin l'information contenue dans la page d'accueil.
B21: → Toute information confidentielle, en vertu d'un contrat ou d'une entente, doit être saisie en bleu.
B22: → La fiche de suivi en format Word doit également être mise à jour. Si aucune modification n'est requise, il est néanmoins nécessaire de mettre à jour les sections Date de mise à jour de la fiche se situant au haut et au bas de la fiche.
B23: → De nouvelles informations sont à saisir à l'onglet Indicateurs quantitatifs, suite aux ajustements apportés à celui-ci.
B24: → Veuillez préciser à la page d'accueil le programme rattaché à l'action, lorsqu'applicable. Le cas échéant, veuillez transmettre le cadre normatif officiel du programme au moment de la retransmission de la fiche de suivi.
B25: → ATTENTION! Copier-coller des informations à partir d'un document Word verrouille les cellules concernées. Pour pouvoir à nouveau écrire et modifier le format de ces cellules, veuillez fermer et ouvrir à nouveau la fiche.
B26: → ATTENTION! Les cellules contenant du texte sont limitées à 250 caractères. Les textes trop longs de votre ancienne fiche sont écrits en rouge puisqu'ils ont été tronqués. Veuillez reformuler ces instances.
B27: à ATTENTION! Il est important de remplir la colonne Coût/tonne estimé de l'onglet Détail des projets lorsqu'applicable
B50: Avant de commencer, veuillez vérifier et corriger au besoin les informations indiquées dans l'encadré ci-dessous:
B52: Priorité : | D52: 15 | E52: Investir dans l'intermodalité et la logistique pour optimiser le transport des marchandises et des personnes
B53: Action : | D53: 15.1 | E53: Programme visant la réduction des émissions de GES par le développement du transport intermodal (PREGTI)
B54: Sous-action :
B55: Libellé usuel : | D55: 15.1 | E55: Programme visant la réduction des émissions de GES par le développement du transport intermodal (PREGTI)
B56: Programme : | D56: PREGTI - Programme visant la réduction des émissions de GES par le développement du transport intermodal
B57: Nom du programme :
B58: Statut de l'action : | D58: en cours
B59: Raison du statut de l'action :
B63: Mise à jour de la fiche le : | D63: 2018-06-15
B66: Ministère porteur : | D66: MTMDET | F66: Chargé de projet : | K66: Part de financement par le PACC : | M66: 100 %
B67: Responsable ministériel : | D67: Évangéline Lévesque | K67: Date de lancement de l'action : | M67: 2014-02-11
B68: Direction responsable : | D68: Transport maritime et ferroviaire | F68: Budget 2013-2020 (M$) : | H68: 82 | K68: Date de fin de l'action : | M68: 2020-12-31
B73: Personne ressource pour leCGFV : | J73: Tél. :
B74: Fiche validée au CGFV le: | D74: 2018-09-21

Sheet DGRFM COF
G2: Bienvenue dans votre fiche de suivi du PACC 2013-2020!
P3: Juillet 2018
B4: Priorité : | D4: 15 | E4: Investir dans l'intermodalité et la logistique pour optimiser le transport des marchandises et des personnes
B5: Action: | D5: 15.1 | E5: 15.1 Programme visant la réduction des émissions de GES par le développement du transport intermodal (PREGTI)
B6: Sous-action: | D6: 15.1
B7: Numéro de programme | D7: 14983 | E7: 52141 | F7: PSA | H7: =P7 -> 0 | J7: Projet
B8: Mise à jour de la fiche le: | D8: 2018-07-05
B9: Ministère porteur: | D9: MTMDET
B10: Responsable ministériel: | D10: Lise Roberge | R10: Date de lancement: | S10: 2014-02-11
B11: Chargé de projet: | D11: Barbara Pouliot | F11: Budget 2013-2020: | P11: 82000000 | R11: Date de fin: | S11: 2020-03-31
B12: Unité Administrative (UA) | D12: 1810000 | E12: Unité administrative générique
B13: Personne ressource pour la DGRFM: | D13: Barbara Pouliot
B22: SECTION 1 - SOMMAIRE - CONSOLIDATION DES ORGANISMES ET DES FONDS (COF) | H22: Combinaison comptable budget | O22: 2013-2014 | P22: 2014-2015 | Q22: 2015-2016 | R22: 2016-2017 | S22: 2017-2018 | T22: 2018-2019 | U22: 2019-2020 | V22: 2020-2021 | W22: 2021-2022 | X22: 2022-2023 | Y22: TOTAL
O23: Réel | P23: Réel | Q23: Réel | R23: Réel | S23: Réel | T23: Prévu | U23: Prévu | V23: Prévu | W23: Prévu | X23: Prévu
B24: Dépenses
B25: 1.1 Rémunération | H25: =IF($D$4="Fonds de protection de l'environnement et des milieux hydriques",784,836) -> 836 | I25: =IF(B25="1.2 Contribution de l'employeur","1810010",$D$12) -> 1810000 | J25: =500012 -> 500012 | K25: =IF($B$24="Revenu",0,900) -> 900 | L25: =IF(OR(B25="1.1 Rémunération",B25="1.2 Contribution de l'employeur",B25="1.3 Immobilisations",B25="1.4 Fonctionnement",B25="1.6 Amortissement"),$D$7,$E$7) -> 14983 | M25: =IF($P$7="",1000000,$P$7) -> 1000000 | N25: =IF($L$7="",100000000,$L$7) -> 100000000 | O25: 0 | P25: 160114 | Q25: 179079.16 | R25: 180217.82 | S25: 174449.87 | T25: 270000 | U25: 304000 | V25: 0 | W25: 0 | X25: 0 | Y25: =SUM(O25:X25) -> 1267860.85
B26: 1.2 Contribution de l'employeur | H26: =IF($D$4="Fonds de protection de l'environnement et des milieux hydriques",784,836) -> 836 | I26: =IF(B26="1.2 Contribution de l'employeur","1810010",$D$12) -> 1810010 | J26: 501002 | K26: =IF($B$24="Revenu",0,900) -> 900 | L26: =IF(OR(B26="1.1 Rémunération",B26="1.2 Contribution de l'employeur",B26="1.3 Immobilisations",B26="1.4 Fonctionnement",B26="1.6 Amortissement"),$D$7,$E$7) -> 14983 | M26: 1000000 | N26: =IF($L$7="",100000000,$L$7) -> 100000000 | O26: =O25*R38 -> 0 | P26: 30676 | Q26: 26578.86 | R26: 23370.82 | S26: 34210.63 | T26: 33210 | U26: 37392 | V26: 0 | W26: 0 | X26: 0 | Y26: 185438.31
B27: 1.3 Immobilisations | H27: 836 | I27: 1810000 | J27: 180710 | K27: 900 | L27: 14983 | M27: 1000000 | N27: 100000000 | O27: 0 | P27: 0 | Q27: 0 | R27: 0 | S27: 0 | T27: 0 | U27: 0 | V27: 0 | W27: 0 | X27: 0 | Y27: 0
B28: 1.4 Fonctionnement | H28: 836 | I28: 1810000 | J28: 510012 | K28: 900 | L28: 14983 | M28: 1000000 | N28: 100000000 | O28: 0 | P28: 2498 | Q28: 240.17 | R28: 892.17 | S28: 2714.14 | T28: 10000 | U28: 10000 | V28: 0 | W28: 0 | X28: 0 | Y28: 26344.48
B29: 1.5 Subventions et autres transferts de fonds | H29: 836 | I29: 1810000 | J29: 0 | K29: 900 | L29: 52141 | M29: 1000000 | N29: 100000000 | O29: =O30+O31 -> 0 | P29: =P30+P31 -> 923587 | Q29: =Q30+Q31 -> 5181286.88 | R29: 476000 | S29: 1168742 | T29: 15000000 | U29: 18000000 | V29: 18000000 | W29: 15000000 | X29: 6770740.48 | Y29: 80520356.36
B30: 1.5.1 - Inclus au périmètre comptable (apparentés) | H30: 836 | I30: 1810000 | J30: 624002a | K30: 900 | L30: 52141 | M30: 1000000 | N30: 100000000 | O30: 0 | P30: 0 | Q30: 0 | R30: 0 | S30: 0 | T30: 0 | U30: 0 | V30: 0 | W30: 0 | X30: 0 | Y30: 0
B31: 1.5.2 - Hors périmètre comptable (non apparentés) | H31: 836 | I31: 1810000 | J31: 624002na | K31: 900 | L31: 52141 | M31: 1000000 | N31: 100000000 | O31: 0 | P31: 923587 | Q31: 5181286.88 | R31: 476000 | S31: 1168742 | T31: 15000000 | U31: 18000000 | V31: 18000000 | W31: 15000000 | X31: 6770740.48 | Y31: 80520356.36
B32: TOTAL | O32: =O25+O26+O27+O28+O29 -> 0 | P32: =P25+P26+P27+P28+P29 -> 1116875 | Q32: =Q25+Q26+Q27+Q28+Q29 -> 5387185.07 | R32: =R25+R26+R27+R28+R29 -> 680480.81 | S32: =S25+S26+S27+S28+S29 -> 1380116.64 | T32: 15313210 | U32: =U25+U26+U27+U28+U29 -> 18351392 | V32: 18000000 | W32: 15000000 | X32: =X25+X26+X27+X28+X29 -> 6770740.48 | Y32: 82000000
B33: Réservé au MDDELCC- DGRFM:
B34: 1.6 Amortissement | H34: 836 | I34: 1810000 | J34: 612200 | K34: 900 | L34: 14983 | M34: =IF($P$7="",1000000,$P$7) -> 1000000 | N34: 100000000 | R34: 0 | Y34: =SUM(P34:X34) -> 0
R37: 2016-2017 | S37: 2017-2018 | T37: 2018-2019 | U37: 2019-2020 | V37: 2020-2021 | W37: 2021-2022
B38: Taux annuel de contribution de l'employeur (%) | R38: 0.123 | S38: 0.123 | T38: 0.1212
B40: Instructions spécifiques à l'exercice de juillet 2018
B41: Date limite: | C41: 2018-07-20
B42: - Les prévisions doivent tenir compte de votre capacité réelle de mise en œuvre des actions
B43: - Veuillez réviser et compléter les cases jaunes
B44: - Gardez la fiche en format excel
B45: - Pour toutes questions en cours d'exercice, veuillez écrire un courriel à l'adresse suivante: pierre-michel.brassard-lapointe@mddelcc.gouv.qc.ca spécifiant la question et le numéro de téléphone auquel nous pouvons vous rejoindre pour y répondre

Sheet Feuil1 (hidden)

Sheet Utilitaire (hidden)
B3: Mot de passe: | C3: !1320PACC | D3: Fiche verrouillée: | E3: Oui - diffusion en ligne
B4: Fiche validée: | C4: Oui
B5: GES attendu: | C5: Oui
B6: Feuille accueil complètement remplie: | C6: Non | D6: Exercice de suivi: | E6: 2017-12-01
B7: Statut action: | C7: =Accueil!D58 -> en cours
B8: Feuille Utilitaire visible: | C8: Non | D8: Titre des Onglets: | E8: PLAN D'ACTION 2013-2020 SUR LES CHANGEMENTS CLIMATIQUES
B9: Dernière ligne de la zone de défilement de l'onglet détail des projets: | C9: 82
B10: nombre d'indicateurs approuvés: | C10: 11
B11: Secteur: | C11: PACC 2013-2020
B12: Numéro de séquence de l'action: | C12: 15.01
B15: Listes Déroulantes
B16: détail des projets | G16: indicateurs quantitatifs | H16: DRFM COF | I16: Accueil
B17: Région Administrative | C17: Statut | D17: Classification | E17: Type d'émissions | F17: Info GES | G17: Type d'indicateur | H17: Exercice de suivi | I17: Statut de l'action | J17: Programmes | K17: Fiche verrouillée
B18: 99-toutes les régions | C18: AC-Actif | D18: SU-Subvention | E18: QC-Québec | F18: Oui | G18: minimum à atteindre | H18: 2013-2014-1 | I18: non démarrée | J18: Non applicable | K18: Oui - partenaire
B19: 01-Bas-Saint-Laurent | C19: TE-Terminé | D19: CF-Contrat fonctionnement | E19: HQ-Hors-Québec | F19: Non | G19: maximum à ne pas dépasser | H19: 2013-2014-2 | I19: en élaboration | J19: Autre programme | K19: Oui - diffusion en ligne
B20: 02-Saguenay- Lac-Saint-Jean | C20: AT-En attente | D20: CI-Contrat immobilisation | E20: ND-Non distingué | G20: binaire | H20: 2014-2015-1 | I20: en cours | J20: Action-Climat Québec | K20: Non - BGFV
B21: 03-Capitale-Nationale | C21: SU-Suspendu | D21: CP-Contrat service professionnel | H21: 2014-2015-2 | I21: terminée | J21: Biomasse forestière résiduelle
B22: 04-Mauricie | C22: AN-Annulé | D22: CT-Contrat service technique | H22: 2015-2016-1 | I22: en suspens | J22: Branché au travail
B23: 05-Estrie | C23: AB-Abandonné | D23: PI-Projet à l'interne | H23: 2015-2016-2 | I23: abandonnée | J23: Climat-municipalités
B24: 06-Montréal | D24: AU-Autre | H24: 2016-2017-1 | J24: ClimatSol-Plus
B25: 07-Outaouais | H25: 2016-2017-2 | J25: Écocamionnage
B26: 08-Abitibi-Témiscamingue | H26: 2017-2018-1 | J26: Écoperformance
B27: 09-Côte-Nord | H27: 2017-2018-2 | J27: PADTC - Programme d'aide au développement du transport collectif
B28: 10-Nord-du-Québec | H28: 2018-2019-1 | J28: PAGASTC - Programme d’aide gouvernementale à l’amélioration des services de transport en commun
B29: 11-Gaspésie-Iles-de-la-Madeleine | H29: 2018-2019-2 | I29: Part de financement par le PACC | J29: PAGTCP - Programme d’aide gouvernementale au transport collectif des personnes
B30: 12-Chaudières-Appalaches | H30: 2019-2020-1 | I30: Variable | J30: PAGTCR - Programme d'aide gouvernementale au transport collectif régional
B31: 13-Laval | H31: 2019-2020-2 | I31: =10 & " %" -> 10 % | J31: PETMAF - Programme d'aide à l'amélioration de l'efficacité du transport maritime, aérien et ferroviaire en matière de réduction des émissions de GES
B32: 14-Lanaudière | H32: 2020-2021-1 | I32: =20 & " %" -> 20 % | J32: PREGTI - Programme visant la réduction des émissions de GES par le développement du transport intermodal
B33: 15-Laurentides | H33: 2020-2021-2 | I33: =30 & " %" -> 30 % | J33: Prime-Vert
B34: 16-Montérégie | H34: 2021-2022-1 | I34: =40 & " %" -> 40 % | J34: Programme d’aide gouvernementale transitoire en matière de transport routier des personnes
B35: 17-Centre-du-Québec | H35: 2021-2022-2 | I35: =50 & " %" -> 50 % | J35: Programme de compostage pour petites municipalités
H36: 2022-2023-1 | I36: =60 & " %" -> 60 % | J36: Programme de coopération climatique internationale
H37: 2022-2023-2 | I37: =70 & " %" -> 70 % | J37: Programme de soutien à des projets de démonstration en transport collectif électrique
H38: 2023-2024-1 | I38: =80 & " %" -> 80 % | J38: Programme de soutien à l'intégration de l'adaptation aux changements climatiques à la planification municipale
H39: 2023-2024-2 | I39: =90 & " %" -> 90 % | J39: Programme de soutien aux municipalités dans la mise en place d'infrastructures de gestion durable des eaux de pluie à la source
I40: =100 & " %" -> 100 % | J40: Programme de subventions à l’adaptation des taxis et des autocars interurbains pour le transport des personnes se déplaçant en fauteuil roulant
J41: Programme de vitrine technologique pour les bâtiments et les solutions innovantes en bois
J42: Projets de démonstration de taxis électriques
J43: Promotion de l'électrification des transports
J44: PTMOBC - Programme de traitement des matières organiques par biométhanisation et compostage
J45: Rénoclimat-volet Chauffez vert
J46: Roulez électrique
J47: Soutien aux essais de fertilisation
J48: Technoclimat
J49: Véloce II

Sheet Validation (hidden)
B2: =Utilitaire!E8 -> PLAN D'ACTION 2013-2020 SUR LES CHANGEMENTS CLIMATIQUES
B3: ="Action " & Accueil!D58 -> Action en cours
B4: =Accueil!D55 -> 15.1 | C4: =Accueil!E55 -> Programme visant la réduction des émissions de GES par le développement du transport intermodal (PREGTI)
B5: Ministère porteur: | E5: =Accueil!$D$66 -> MTMDET
B6: Rapport de validation de la fiche de suivi
A9: Code de couleur | B9: Feuille concernée | C9: no ligne | D9: Description de la problématique | E9: No d'erreur | F9: Commentaires
B10: détail des projets | C10: 25 | D10: Le total des dépenses réelles du projet de la ligne 25 ne correspond pas. | E10: 8
B11: détail des projets | C11: 26 | D11: Des informations caractéristiques du projet de la ligne 26 sont manquantes: RÉGION ADMINISTRATIVE, STATUT, CLASSIFICATION DU PROJET, MONTANT ENGAGÉ ($), DATE DE L'ENGAGEMENT, DATE DU DERNIER VERSEMENT, Budget total du projet ($). | E11: 5
B12: détail des projets | C12: 28 | D12: Des informations caractéristiques du projet de la ligne 28 sont manquantes: RÉGION ADMINISTRATIVE, STATUT, CLASSIFICATION DU PROJET, MONTANT ENGAGÉ ($), DATE DE L'ENGAGEMENT, DATE DU DERNIER VERSEMENT, Budget total du projet ($). | E12: 5
B13: détail des projets | C13: 29 | D13: Des informations caractéristiques du projet de la ligne 29 sont manquantes: DATE DU DERNIER VERSEMENT. | E13: 5
B14: détail des projets | C14: 29 | D14: La dépense du projet de la ligne 29 pour la période 2016-2017 est négative. | E14: 6
B15: détail des projets | C15: 31 | D15: Des informations caractéristiques du projet de la ligne 31 sont manquantes: RÉGION ADMINISTRATIVE, STATUT, CLASSIFICATION DU PROJET, MONTANT ENGAGÉ ($), DATE DE L'ENGAGEMENT, DATE DU DERNIER VERSEMENT, Budget total du projet ($). | E15: 5
B16: détail des projets | C16: 32 | D16: La dépense du projet de la ligne 32 pour la période 2018-2019 est négative. | E16: 6
B17: détail des projets | C17: 33 | D17: Des informations caractéristiques du projet de la ligne 33 sont manquantes: RÉGION ADMINISTRATIVE, STATUT, CLASSIFICATION DU PROJET, MONTANT ENGAGÉ ($), DATE DE L'ENGAGEMENT, DATE DU DERNIER VERSEMENT, Budget total du projet ($). | E17: 5
B18: détail des projets | C18: 40 | D18: La dépense du projet de la ligne 40 pour la période 2018-2019 est négative. | E18: 6
B19: détail des projets | C19: 41 | D19: Des informations caractéristiques du projet de la ligne 41 sont manquantes: RÉGION ADMINISTRATIVE, STATUT, CLASSIFICATION DU PROJET, MONTANT ENGAGÉ ($), DATE DE L'ENGAGEMENT, DATE DU DERNIER VERSEMENT, Budget total du projet ($). | E19: 5
B20: détail des projets | C20: 42 | D20: La dépense du projet de la ligne 42 pour la période 2015-2016 est négative. | E20: 6
B21: détail des projets | C21: 43 | D21: Des informations caractéristiques du projet de la ligne 43 sont manquantes: RÉGION ADMINISTRATIVE, STATUT, CLASSIFICATION DU PROJET, MONTANT ENGAGÉ ($), DATE DE L'ENGAGEMENT, DATE DU DERNIER VERSEMENT, Budget total du projet ($). | E21: 5
B22: détail des projets | C22: 44 | D22: La dépense du projet de la ligne 44 pour la période 2015-2016 est négative. | E22: 6
B23: détail des projets | C23: 45 | D23: Le total des dépenses réelles du projet de la ligne 45 ne correspond pas. | E23: 8
B24: détail des projets | C24: 46 | D24: Des informations caractéristiques du projet de la ligne 46 sont manquantes: RÉGION ADMINISTRATIVE, STATUT, CLASSIFICATION DU PROJET, MONTANT ENGAGÉ ($), DATE DE L'ENGAGEMENT, DATE DU DERNIER VERSEMENT, Budget total du projet ($). | E24: 5
B25: détail des projets | C25: 47 | D25: Le total des dépenses réelles du projet de la ligne 47 ne correspond pas. | E25: 8
B26: détail des projets | C26: 48 | D26: Le total des dépenses réelles du projet de la ligne 48 ne correspond pas. | E26: 8
B27: détail des projets | C27: 49 | D27: Des informations caractéristiques du projet de la ligne 49 sont manquantes: RÉGION ADMINISTRATIVE, STATUT, CLASSIFICATION DU PROJET, MONTANT ENGAGÉ ($), DATE DE L'ENGAGEMENT, DATE DU DERNIER VERSEMENT, Budget total du projet ($). | E27: 5
B28: détail des projets | C28: 50 | D28: Le total des dépenses réelles du projet de la ligne 50 ne correspond pas. | E28: 8
B29: détail des projets | C29: 51 | D29: Des informations caractéristiques du projet de la ligne 51 sont manquantes: RÉGION ADMINISTRATIVE, STATUT, CLASSIFICATION DU PROJET, MONTANT ENGAGÉ ($), DATE DE L'ENGAGEMENT, DATE DU DERNIER VERSEMENT, Budget total du projet ($). | E29: 5
B30: détail des projets | C30: 52 | D30: Le total des dépenses réelles du projet de la ligne 52 ne correspond pas. | E30: 8
B31: détail des projets | C31: 53 | D31: Le total des dépenses réelles du projet de la ligne 53 ne correspond pas. | E31: 8
B32: détail des projets | C32: 54 | D32: Des informations caractéristiques du projet de la ligne 54 sont manquantes: RÉGION ADMINISTRATIVE, STATUT, CLASSIFICATION DU PROJET, MONTANT ENGAGÉ ($), DATE DE L'ENGAGEMENT, DATE DU DERNIER VERSEMENT, Budget total du projet ($). | E32: 5
B33: indicateurs quantitatifs | C33: 33 | D33: La valeur de l'indicateur de la ligne 33 n'a pas été rapportée. | E33: 19
B34: indicateurs quantitatifs | C34: 33 | D34: Le résultat à comparer avec la cible de la ligne 33 n'a pas été rapporté. | E34: 100
B35: indicateurs quantitatifs | C35: 34 | D35: La valeur de l'indicateur de la ligne 34 n'a pas été rapportée. | E35: 19
B36: indicateurs quantitatifs | C36: 34 | D36: Le résultat à comparer avec la cible de la ligne 34 n'a pas été rapporté. | E36: 100
B37: indicateurs quantitatifs | C37: 35 | D37: La valeur de l'indicateur de la ligne 35 n'a pas été rapportée. | E37: 19
B38: indicateurs quantitatifs | C38: 35 | D38: Le résultat à comparer avec la cible de la ligne 35 n'a pas été rapporté. | E38: 100

Sheet détail des projets
B2: PLAN D'ACTION 2013-2020 SUR LES CHANGEMENTS CLIMATIQUES
B3: ="Action " & [1]Accueil!D58 -> Action en cours
B4: =[1]Accueil!D55 -> 15.1 | C4: =[1]Accueil!E55 -> Programme visant la réduction des émissions de GES par le développement du transport intermodal (PREGTI)
B5: Ministère porteur: | D5: =[1]Accueil!$D$66 -> MTMDET
B6: Détails et prévisions des dépenses par projet
AI20: =IF(AND(MID(#REF!,1,9)=AI23,AI24="Non Vérifié"),1,0) ->  | AJ20: =IF(AND(MID(#REF!,1,9)=AJ23,AJ24="Non Vérifié"),1,0) ->  | AK20: =IF(AND(MID(#REF!,1,9)=AK23,AK24="Non Vérifié"),1,0) ->  | AL20: =IF(AND(MID(#REF!,1,9)=AL23,AL24="Non Vérifié"),1,0) ->  | AM20: =IF(AND(MID(#REF!,1,9)=AM23,AM24="Non Vérifié"),1,0) ->  | AN20: =IF(AND(MID(#REF!,1,9)=AN23,AN24="Non Vérifié"),1,0) ->  | AO20: =IF(AND(MID(#REF!,1,9)=AO23,AO24="Non Vérifié"),1,0) ->  | AP20: =IF(AND(MID(#REF!,1,9)=AP23,AP24="Non Vérifié"),1,0) ->  | AQ20: =IF(AND(MID(#REF!,1,9)=AQ23,AQ24="Non Vérifié"),1,0) ->  | AR20: =IF(AND(MID(#REF!,1,9)=AR23,AR24="Non Vérifié"),1,0) ->  | AS20: =IF(AND(MID(#REF!,1,9)=AS23,AS24="Non Vérifié"),1,0) ->  | AT20: =IF(AND(MID(#REF!,1,9)=AT23,AT24="Non Vérifié"),1,0) ->  | AU20: =IF(AND(MID(#REF!,1,9)=AU23,AU24="Non Vérifié"),1,0) ->  | AV20: =IF(AND(MID(#REF!,1,9)=AV23,AV24="Non Vérifié"),1,0) ->  | AW20: =IF(AND(MID(#REF!,1,9)=AW23,AW24="Non Vérifié"),1,0) ->  | AX20: =IF(AND(MID(#REF!,1,9)=AX23,AX24="Non Vérifié"),1,0) ->  | AY20: =IF(AND(MID(#REF!,1,9)=AY23,AY24="Non Vérifié"),1,0) ->  | AZ20: =IF(AND(MID(#REF!,1,9)=AZ23,AZ24="Non Vérifié"),1,0) ->  | BA20: =IF(AND(MID(#REF!,1,9)=BA23,BA24="Non Vérifié"),1,0) ->  | BB20: =IF(AND(MID(#REF!,1,9)=BB23,BB24="Non Vérifié"),1,0) ->  | BC20: =IF(AND(MID(#REF!,1,9)=BC23,BC24="Non Vérifié"),1,0) ->  | BD20: =IF(AND(MID(#REF!,1,9)=BD23,BD24="Non Vérifié"),1,0) -> 
AI21: =IF(AND(MID(#REF!,1,9)=AI23,AI24="Vérifié"),1,0) ->  | AJ21: =IF(AND(MID(#REF!,1,9)=AJ23,AJ24="Vérifié"),1,0) ->  | AK21: =IF(AND(MID(#REF!,1,9)=AK23,AK24="Vérifié"),1,0) ->  | AL21: =IF(AND(MID(#REF!,1,9)=AL23,AL24="Vérifié"),1,0) ->  | AM21: =IF(AND(MID(#REF!,1,9)=AM23,AM24="Vérifié"),1,0) ->  | AN21: =IF(AND(MID(#REF!,1,9)=AN23,AN24="Vérifié"),1,0) ->  | AO21: =IF(AND(MID(#REF!,1,9)=AO23,AO24="Vérifié"),1,0) ->  | AP21: =IF(AND(MID(#REF!,1,9)=AP23,AP24="Vérifié"),1,0) ->  | AQ21: =IF(AND(MID(#REF!,1,9)=AQ23,AQ24="Vérifié"),1,0) ->  | AR21: =IF(AND(MID(#REF!,1,9)=AR23,AR24="Vérifié"),1,0) ->  | AS21: =IF(AND(MID(#REF!,1,9)=AS23,AS24="Vérifié"),1,0) ->  | AT21: =IF(AND(MID(#REF!,1,9)=AT23,AT24="Vérifié"),1,0) ->  | AU21: =IF(AND(MID(#REF!,1,9)=AU23,AU24="Vérifié"),1,0) ->  | AV21: =IF(AND(MID(#REF!,1,9)=AV23,AV24="Vérifié"),1,0) ->  | AW21: =IF(AND(MID(#REF!,1,9)=AW23,AW24="Vérifié"),1,0) ->  | AX21: =IF(AND(MID(#REF!,1,9)=AX23,AX24="Vérifié"),1,0) ->  | AY21: =IF(AND(MID(#REF!,1,9)=AY23,AY24="Vérifié"),1,0) ->  | AZ21: =IF(AND(MID(#REF!,1,9)=AZ23,AZ24="Vérifié"),1,0) ->  | BA21: =IF(AND(MID(#REF!,1,9)=BA23,BA24="Vérifié"),1,0) ->  | BB21: =IF(AND(MID(#REF!,1,9)=BB23,BB24="Vérifié"),1,0) ->  | BC21: =IF(AND(MID(#REF!,1,9)=BC23,BC24="Vérifié"),1,0) ->  | BD21: =IF(AND(MID(#REF!,1,9)=BD23,BD24="Vérifié"),1,0) -> 
B22: DÉTAILS DES PROJETS AUTORISÉS | N22: MONTANTS PROVENANT DU PACC 2013-2020 ($) | Y22: =MONTH(#REF!) ->  | AB22: DÉTAIL DES ÉMISSIONS DE GES RÉDUITES OU ÉVITÉES (en tonnes CO2 éq.)
A23: No | B23: VOLET OU THÉMATIQUE | C23: NOM DU REQUÉRANT | D23: NOM DU PROJET | E23: NOMBRE DE PROJETS | F23: RÉGION ADMINISTRATIVE | G23: MUNICIPALITÉ | H23: STATUT | I23: CLASSIFICATION DU PROJET | J23: MONTANT ENGAGÉ ($) | K23: DATE DE L'ENGAGEMENT | L23: DATE DU DERNIER VERSEMENT (prévu ou réalisé) | M23: BUDGET TOTAL DU PROJET ($) | N23: 2013-2014 | O23: 2014-2015 | P23: 2015-2016 | Q23: 2016-2017 | R23: 2017-2018 | S23: 2018-2019 | T23: 2019-2020 | U23: 2020-2021 | V23: 2021-2022 | W23: 2022-2023 | X23: 2023-2024 | Y23: MONTANT DES DÉPENSES RÉELLES ($) | Z23: TOTAL DES DÉPENSES RÉELLES ET PRÉVUES ($) | AB23: Type d'émission | AC23: émissions rapportées dans l'inventaire | AD23: Durée du projet (exemple: durée de vie de l'équipement) | AE23: Émissions | AG23: Vérifiées | AI23: 2013-2014 | AJ23: 2013-2014 | AK23: 2014-2015 | AL23: 2014-2015 | AM23: 2015-2016 | AN23: 2015-2016 | AO23: 2016-2017 | AP23: 2016-2017 | AQ23: 2017-2018 | AR23: 2017-2018 | AS23: 2018-2019 | AT23: 2018-2019 | AU23: 2019-2020 | AV23: 2019-2020 | AW23: 2020-2021 | AX23: 2020-2021 | AY23: 2021-2022 | AZ23: 2021-2022 | BA23: 2022-2023 | BB23: 2022-2023 | BC23: 2023-2024 | BD23: 2023-2024 | BE23: Coût/tonne estimé | BF23: Coût/tonne estimé de la dernière année vérifiée
J24: (convention signée, contrat, lettre de confirmation du ministre ou de son représentant ou lettre d'octroi) | N24: Réel | O24: Réel | P24: Réel | Q24: Réel | R24: Prévu | S24: Prévu | T24: Prévu | U24: Prévu | V24: Prévu | W24: Prévu | X24: Prévu | AE24: Réduites | AF24: Évitées | AG24: Tierce partie | AH24: M/O | AI24: Vérifié | AJ24: Non vérifié | AK24: Vérifié | AL24: Non vérifié | AM24: Vérifié | AN24: Non vérifié | AO24: Vérifié | AP24: Non vérifié | AQ24: Vérifié | AR24: Non vérifié | AS24: Vérifié | AT24: Non vérifié | AU24: Vérifié | AV24: Non vérifié | AW24: Vérifié | AX24: Non vérifié | AY24: Vérifié | AZ24: Non vérifié | BA24: Vérifié | BB24: Non vérifié | BC24: Vérifié | BD24: Non vérifié
A25: 1 | B25: 1-A | C25: Port Franc Logistique (filiale de Port Franc) | D25: Essai d,une chaîne de transport logistique décarbonisée entre l'Europe et l'Amérique basée sur les énergies du vent et électrique (voilier et camions électriques) | E25: 1 | F25: 06-Montréal | G25: Outremont | H25: AC-Actif | I25: SU-Subvention | J25: 988750 | K25: 2017-03-31 | L25: 2019-11-01 | M25: 1977500 | R25: 126242 | S25: 485200 | T25: 208700 | Y25: =SUM(N25:R25) -> 126242 | Z25: =SUM(N25:X25) -> 820142 | AB25: HQ-Hors-Québec | AD25: 3 | AE25: Oui | AG25: Non | AR25: 47 | BF25: =IF(SUM(AI25:BD25)=0,0,(Y25/SUMIF($AI$20:$BD$20,"1",AI25:BD25))) -> 
A26: 2 | C26: Port Franc Logistique (filiale de Port Franc) | D26: Essai d,une chaîne de transport logistique décarbonisée entre l'Europe et l'Amérique basée sur les énergies du vent et électrique (voilier et camions électriques) | Y26: =SUM(N26:R26) -> 0 | Z26: 0 | AB26: QC-Québec | AC26: Oui | AD26: 3 | AE26: oui | AG26: Non | AR26: 246 | BF26: =IF(SUM(AI27:BD27)=0,0,(Y27/SUMIF($AI$20:$BD$20,"1",AI27:BD27))) -> 
A27: 3 | B27: 4 | C27: Railex Inc. | D27: Acquisition d'une chargeuse sur roues pour le chargement de matériaux recyclés dans des wagons | E27: 1 | F27: 01-Bas-Saint-Laurent | G27: Matane-Matépédia | H27: TE-Terminé | I27: SU-Subvention | J27: 60000 | K27: 2016-09-27 | L27: 2017-09-01 | M27: 225000 | Q27: 60000 | Y27: 60000 | Z27: 60000 | AB27: HQ-Hors-Québec | AD27: 10 | AE27: Oui | AG27: Oui | AO27: 4 | AQ27: 7 | BF27: =IF(SUM(AI29:BD29)=0,0,(Y29/SUMIF($AI$20:$BD$20,"1",AI29:BD29))) -> 0
C28: Railex inc. | D28: Acquisition d'une chargeuse sur roues pour le chargement de matériaux recyclés dans des wagons | Y28: 0 | Z28: 0 | AB28: QC-Québec | AC28: Oui | AD28: 10 | AE28: oui | AG28: Oui | AO28: 107 | AQ28: 183
A29: 4 | B29: 1-B | C29: Administration portuaire du Saguenay | D29: Étude de faisabilité pour la construction d'un débarcadère de grande capacité pour l'expédition de pièces de grandes dimensions ou de poids excessifs | E29: 1 | F29: 02-Saguenay- Lac-Saint-Jean | G29: Dubuc | H29: AN-Annulé | I29: SU-Subvention | J29: 4000 | K29: 2015-10-21 | M29: 20000 | P29: 4000 | Q29: -4000 | Y29: 0 | Z29: 0 | BF29: =IF(SUM(AI30:BD30)=0,0,(Y30/SUMIF($AI$20:$BD$20,"1",AI30:BD30))) -> 0
A30: 5 | B30: 1-A | C30: Distribution Upton inc. | D30: Construction d'un centre de transbordement du tourteau de soya biologique | E30: 1 | F30: 16-Montérégie | G30: Jonhson | H30: AC-Actif | I30: SU-Subvention | J30: 75000 | K30: 2015-10-08 | L30: 2017-09-01 | M30: 405972 | P30: 75000 | Y30: 75000 | Z30: 75000 | AB30: HQ-Hors-Québec | AD30: 20 | AE30: Oui | AF30: Oui | BF30: =IF(SUM(AI32:BD32)=0,0,(Y32/SUMIF($AI$20:$BD$20,"1",AI32:BD32))) -> 
C31: Distribution Upton inc. | D31: Construction d'un centre de transbordement du tourteau de soya biologique | Y31: 0 | Z31: 0 | AB31: QC-Québec | AC31: Oui | AD31: 20 | AE31: oui | AF31: Oui
A32: 6 | B32: 4 | C32: Track Vale International (9306-4855 Québec Inc) | D32: Aménagement d'un centre de transbordement intermodal pour les métaux recyclés en vrac | E32: 1 | F32: 16-Montérégie | G32: Jonhson | H32: TE-Terminé | I32: SU-Subvention | J32: 600000 | K32: 2015-09-10 | L32: 2017-12-01 | M32: 1505000 | P32: 600000 | S32: -300000 | Y32: 600000 | Z32: 300000 | AB32: HQ-Hors-Québec | AD32: 20 | AE32: oui | AG32: Non | AN32: 552 | AP32: 552 | AR32: 552 | BF32: =IF(SUM(AI34:BD34)=0,0,(Y34/SUMIF($AI$20:$BD$20,"1",AI34:BD34))) -> 0
C33: Track Vale International (9306-4855 Québec Inc) | D33: Aménagement d'un centre de transbordement intermodal pour les métaux recyclés en vrac | Y33: 0 | Z33: 0 | AB33: QC-Québec | AC33: Oui | AD33: 20 | AE33: oui | AG33: Non | AN33: 89 | AP33: 89 | AR33: 89
A34: 7 | B34: 1-A | C34: Distribution Upton inc. | D34: Étude visant à évaluer le potentiel de diversification et d'expansion du centre de transbordement ferroviaire | E34: 1 | F34: 16-Montérégie | G34: Jonhson | H34: TE-Terminé | I34: SU-Subvention | J34: 17500 | K34: 2015-09-10 | L34: 2016-03-29 | M34: 35000 | P34: 12974 | Y34: 12974 | Z34: 12974 | BF34: =IF(SUM(AI35:BD35)=0,0,(Y35/SUMIF($AI$20:$BD$20,"1",AI35:BD35))) -> 0
A35: 8 | B35: 4 | C35: Termont Montréal Inc. | D35: Remplacement de 2 grues fonctionnant au diesel par 2 grues électriques Post-Panamax | E35: 1 | F35: 06-Montréal | G35: Bourget | H35: AC-Actif | I35: SU-Subvention | J35: 3200000 | K35: 2015-09-04 | L35: 2017-10-01 | M35: 19800000 | P35: 2780000 | Q35: 420000 | Y35: 3200000 | Z35: 3200000 | AB35: QC-Québec | AC35: Oui | AD35: 25 | AE35: Oui | BF35: 0
A36: 9 | B36: 1-A | C36: Traversier le Passeur Inc. | D36: Étude pour la faisabilité de l'électrification du traversier NM Le Passeur | E36: 1 | F36: 15-Laurentides | G36: Argenteuil | H36: TE-Terminé | I36: SU-Subvention | J36: 23855 | K36: 2015-08-26 | L36: 2016-07-27 | M36: 36700 | P36: 23855 | Y36: 23855 | Z36: 23855 | BF36: 0
A37: 10 | B37: 4 | C37: Aliments Breton Inc. | D37: Construction d'un centre de transbordement pour les grains à Scott | E37: 1 | F37: 12 Chaudières-Appalaches | G37: Beauce-Nord | H37: AC-Actif | I37: SU-Subvention | J37: 550000 | K37: 2015-08-20 | L37: 2017-09-01 | M37: 6962068 | P37: 550000 | Y37: 550000 | Z37: 550000 | AB37: QC-Québec | AC37: Oui | AD37: 40 | AE37: Oui | BF37: 0
A38: 11 | B38: 1-A | C38: Commission régionale du port de Gros-Cacouna | D38: Réaliser une étude pour la mise en place d'un service roulier entre Gros-Cacouna et un port à déterminer sur la Côte-Nord | E38: 1 | F38: 01-Bas-Saint-Laurent | G38: Rivière-du-Loup | H38: TE-Terminé | I38: SU-Subvention | J38: 9500 | K38: 2015-05-28 | L38: 2016-02-09 | M38: 47743 | P38: 8780 | Y38: 8780 | Z38: 8780
A39: 12 | B39: 1-A | C39: Groupe Riverin maritime inc. | D39: Acquisition d'un navire "model single decker" équipé d'une excavatrice pour le transport d'agrégat entre Forestiville, Rimouski et Cacouna | E39: 1 | F39: 02-Saguenay- Lac-Saint-Jean | G39: Saguenay | H39: AC-Actif | I39: SU-Subvention | J39: 500000 | K39: 2015-02-18 | L39: 2017-11-01 | M39: 3550200 | O39: 100000 | P39: 400000 | Y39: 500000 | Z39: 500000 | AB39: QC-Québec | AC39: Oui | AD39: 15 | AE39: Oui | AG39: Non | AN39: 1115 | AP39: 1115 | AR39: 1115
A40: 13 | B40: 1-B | C40: Trans rail FN27 Inc. | D40: Ajout de voies ferrées, installation de quais, de réservoirs et d'équipements de manutention pour le transbordement de propane à Val d'Or | E40: 1 | F40: 08-Abitibi-Témiscamingue | G40: Val d'Or | H40: AC-Actif | I40: SU-Subvention | J40: 1500000 | K40: 2014-12-08 | L40: 2017-10-01 | M40: 4328409 | O40: 750000 | P40: 750000 | S40: -750000 | Y40: 1500000 | Z40: 750000 | AB40: HQ-Hors-Québec | AD40: 20 | AF40: Oui | AG40: Oui | AM40: 160 | AO40: 160 | AQ40: 160 | BF40: =IF(SUM(AI42:BD42)=0,0,(Y42/SUMIF($AI$20:$BD$20,"1",AI42:BD42))) -> 
C41: Trans rail FN27 Inc. | D41: Ajout de voies ferrées, installation de quais, de réservoirs et d'équipements de manutention pour le transbordement de propane à Val d'Or | Y41: 0 | Z41: 0 | AB41: QC-Québec | AC41: Oui | AD41: 20 | AF41: oui | AG41: Oui | AM41: 68 | AO41: 68 | AQ41: 68
A42: 14 | B42: 4 | C42: Logi-Bel inc. | D42: Aménagement d'un centre de transbordement de billes de bois | E42: 1 | F42: 05-Estrie | G42: Lac Mégantic | H42: TE-Terminé | I42: SU-Subvention | J42: 50000 | K42: 2014-10-31 | L42: 2016-03-02 | M42: 100000 | O42: 50000 | P42: -19573 | Y42: 30427 | Z42: 30427 | AB42: HQ-Hors-Québec | AD42: 20 | AE42: oui | AG42: Oui | AK42: 13 | AM42: 78 | AO42: 78 | AQ42: 78 | BF42: =IF(SUM(AI44:BD44)=0,0,(Y44/SUMIF($AI$20:$BD$20,"1",AI44:BD44))) -> 0
C43: Logi-Bel inc. | D43: Aménagement d'un centre de transbordement de billes de bois | Y43: 0 | Z43: 0 | AB43: QC-Québec | AC43: Oui | AD43: 20 | AE43: oui | AG43: Oui | AK43: 5 | AM43: 31 | AO43: 31 | AQ43: 31
A44: 15 | B44: 4 | C44: Municipalité de Grande-Vallée | D44: Étude pour l'inspection du quai de Grande-Vallée afin de pouvoir relancer les activités commerciales | E44: 1 | F44: 11-Gaspésie-Iles-de-la-Madeleine | G44: Grande-Vallée | H44: TE-Terminé | I44: SU-Subvention | J44: 23687 | K44: 2014-10-03 | L44: 2015-09-04 | M44: 47375 | O44: 23687 | P44: -3850 | Y44: 19837 | Z44: 19837 | BF44: =IF(SUM(#REF!)=0,0,(#REF!/SUMIF($AI$20:$BD$20,"1",#REF!))) -> 
A45: 16 | B45: 1-B | C45: Solugaz Inc. | D45: Aménagement d’un terminal ferroviaire pour le transbordement de gaz propane | E45: 1 | F45: 03-Capitale-Nationale | G45: Québec | H45: AC-Actif | I45: SU-Subvention | J45: 324750 | K45: 2018-03-29 | L45: 2020-01-01 | M45: 997500 | S45: 324750 | Y45: 0 | Z45: =SUM(N45:X45) -> 324750 | AB45: QC-Québec | AC45: Oui | AD45: 50 | AE45: Oui | BF45: =IF(SUM(#REF!)=0,0,(#REF!/SUMIF($AI$20:$BD$20,"1",#REF!))) -> 
A46: 17 | C46: Solugaz Inc. | D46: Aménagement d’un terminal ferroviaire pour le transbordement de gaz propane | Y46: 0 | Z46: =SUM(N46:X46) -> 0 | AB46: HQ-Hors-Québec | AD46: 50 | AE46: Oui | BF46: =IF(SUM(#REF!)=0,0,(#REF!/SUMIF($AI$20:$BD$20,"1",#REF!))) -> 
A47: 18 | B47: 1-A | C47: Marmen Énergie Inc. | D47: Construction d'un embranchement ferroviaire pour le transport de sections de tours d'éoliennes | E47: 1 | F47: 01-Bas-Saint-Laurent | G47: Matane | H47: AC-Actif | I47: SU-Subvention | J47: 464500 | K47: 2018-03-29 | L47: 2020-01-01 | M47: 2307000 | R47: 150000 | S47: 314500 | Y47: 150000 | Z47: =SUM(N47:X47) -> 464500 | AB47: QC-Québec | AC47: Oui | AD47: 15 | AE47: Oui | BF47: =IF(SUM(#REF!)=0,0,(#REF!/SUMIF($AI$20:$BD$20,"1",#REF!))) -> 
A48: 19 | B48: 1-A | C48: Groupe TYT | D48: Aménagement d'un centre de transfert intermodal routier-ferroviaire | E48: 1 | F48: 05-Estrie | G48: Richmond | H48: AC-Actif | I48: SU-Subvention | J48: 1500000 | K48: 2018-03-13 | L48: 2020-09-01 | M48: 3798500 | R48: 750000 | S48: 750000 | Y48: 750000 | Z48: =SUM(N48:X48) -> 1500000 | AB48: QC-Québec | AC48: Oui | AD48: 8 | AE48: Oui | AF48: Oui | BF48: =IF(SUM(#REF!)=0,0,(#REF!/SUMIF($AI$20:$BD$20,"1",#REF!))) -> 
A49: 20 | C49: Groupe TYT | D49: Aménagement d'un centre de transfert intermodal routier-ferroviaire | Y49: 0 | Z49: =SUM(N49:X49) -> 0 | AB49: HQ-Hors-Québec | AD49: 8 | AE49: Oui | AF49: Oui | BF49: =IF(SUM(#REF!)=0,0,(#REF!/SUMIF($AI$20:$BD$20,"1",#REF!))) -> 
A50: 21 | B50: 1-B | C50: Danaca Transport Montréal Ltee | D50: Acquisition d'équipement de levage magnétisé pour le chargement des wagons | E50: 1 | F50: 16-Montérégie | G50: Longueil | H50: AC-Actif | I50: SU-Subvention | J50: 425000 | K50: 2018-03-29 | L50: 2020-09-01 | M50: 925000 | S50: 425000 | Y50: 0 | Z50: =SUM(N50:X50) -> 425000 | AB50: QC-Québec | AC50: Oui | AD50: 10 | AF50: Oui | BF50: =IF(SUM(#REF!)=0,0,(#REF!/SUMIF($AI$20:$BD$20,"1",#REF!))) -> 
A51: 22 | C51: Danaca Transport Montréal Ltee | D51: Acquisition d'équipement de levage magnétisé pour le chargement des wagons | Y51: 0 | Z51: =SUM(N51:X51) -> 0 | AB51: HQ-Hors-Québec | AD51: 10 | AF51: Oui | BF51: =IF(SUM(#REF!)=0,0,(#REF!/SUMIF($AI$20:$BD$20,"1",#REF!))) -> 
A52: 23 | B52: 1-B | C52: Papiers White Birch - S.E.C. FF Soucy WB | D52: Projet intermodale FF.Soucy à Rivière-du-Loup - Aménagement de voies ferrées et acquisition d'équipement de transbordement pour transférer l'expédition de papier du mode camionnage vers le mode ferroviaire | E52: 1 | F52: 01-Bas-Saint-Laurent | G52: Rivière-du-Loup | H52: AC-Actif | I52: SU-Subvention | J52: 467500 | K52: 2018-03-05 | L52: 2020-01-01 | M52: 935000 | R52: 117500 | S52: 350000 | Y52: 117500 | Z52: =SUM(N52:X52) -> 467500 | AB52: QC-Québec | AC52: Oui | AD52: 5 | AE52: Oui | BF52: =IF(SUM(#REF!)=0,0,(#REF!/SUMIF($AI$20:$BD$20,"1",#REF!))) -> 
A53: 24 | B53: 1-A | C53: Stablex Canada Inc. | D53: Installation de 2 voies ferrées et achat d'un locotracteur à l'usine de Stablex à Blainville | E53: 1 | F53: 15-Laurentides | G53: Blainville | H53: AC-Actif | I53: SU-Subvention | J53: 626140 | K53: 2018-03-29 | L53: 2020-03-31 | M53: 2179000 | R53: 25000 | S53: 601140 | Y53: 25000 | Z53: =SUM(N53:X53) -> 626140 | AB53: QC-Québec | AC53: Oui | AD53: 30 | AE53: Oui | BF53: =IF(SUM(#REF!)=0,0,(#REF!/SUMIF($AI$20:$BD$20,"1",#REF!))) -> 
A54: 25 | C54: Stablex Canada Inc. | D54: Installation de 2 voies ferrées et achat d'un locotracteur à l'usine de Stablex à Blainville | Y54: 0 | Z54: =SUM(N54:X54) -> 0 | AB54: HQ-Hors-Québec | AD54: 30 | AE54: Oui | BF54: =IF(SUM(#REF!)=0,0,(#REF!/SUMIF($AI$20:$BD$20,"1",#REF!))) -> 
A55: 26 | Y55: 0 | Z55: =SUM(N55:X55) -> 0 | BF55: =IF(SUM(#REF!)=0,0,(#REF!/SUMIF($AI$20:$BD$20,"1",#REF!))) -> 
A56: 27 | Y56: 0 | Z56: =SUM(N56:X56) -> 0 | BF56: =IF(SUM(#REF!)=0,0,(#REF!/SUMIF($AI$20:$BD$20,"1",#REF!))) -> 
A57: 28 | Y57: 0 | Z57: =SUM(N57:X57) -> 0 | BF57: =IF(SUM(#REF!)=0,0,(#REF!/SUMIF($AI$20:$BD$20,"1",#REF!))) -> 
A58: 29 | Y58: 0 | Z58: =SUM(N58:X58) -> 0 | BF58: =IF(SUM(#REF!)=0,0,(#REF!/SUMIF($AI$20:$BD$20,"1",#REF!))) -> 
A59: 30 | Y59: 0 | Z59: =SUM(N59:X59) -> 0 | BF59: =IF(SUM(#REF!)=0,0,(#REF!/SUMIF($AI$20:$BD$20,"1",#REF!))) -> 
A60: 31 | Y60: 0 | Z60: =SUM(N60:X60) -> 0 | BF60: =IF(SUM(#REF!)=0,0,(#REF!/SUMIF($AI$20:$BD$20,"1",#REF!))) -> 
A61: 32 | Y61: 0 | Z61: =SUM(N61:X61) -> 0 | BF61: =IF(SUM(#REF!)=0,0,(#REF!/SUMIF($AI$20:$BD$20,"1",#REF!))) -> 
A62: 33 | Y62: 0 | Z62: =SUM(N62:X62) -> 0 | BF62: =IF(SUM(#REF!)=0,0,(#REF!/SUMIF($AI$20:$BD$20,"1",#REF!))) -> 
A63: 34 | Y63: 0 | Z63: =SUM(N63:X63) -> 0 | BF63: =IF(SUM(#REF!)=0,0,(#REF!/SUMIF($AI$20:$BD$20,"1",#REF!))) -> 
A64: 35 | Y64: 0 | Z64: =SUM(N64:X64) -> 0 | BF64: =IF(SUM(#REF!)=0,0,(#REF!/SUMIF($AI$20:$BD$20,"1",#REF!))) -> 
A65: 36 | Y65: 0 | Z65: =SUM(N65:X65) -> 0 | BF65: =IF(SUM(#REF!)=0,0,(#REF!/SUMIF($AI$20:$BD$20,"1",#REF!))) -> 
A66: 37 | Y66: 0 | Z66: =SUM(N66:X66) -> 0 | BF66: =IF(SUM(#REF!)=0,0,(#REF!/SUMIF($AI$20:$BD$20,"1",#REF!))) -> 
A67: tot | Y67: =SUM(N67:Q67) -> 0 | Z67: 0
B68: TOTAL DES DÉPENSES DE PROJET ($) | J68: =SUM(J25:J67) -> 11410182 | N68: =SUM(N25:N67) -> 0 | O68: 923687 | P68: 5181186 | Q68: 476000 | R68: 1168742 | S68: 2200590 | T68: 208700 | U68: 0 | V68: 0 | W68: 0 | X68: 0 | Y68: 7749615 | Z68: 10158905 | AB68: TOTAL (tonnes CO2 éq.) | AI68: =SUM(AI25:AI67) -> 0 | AJ68: 0 | AK68: 18 | AL68: 0 | AM68: 337 | AN68: 1756 | AO68: 448 | AP68: 1756 | AQ68: 527 | AR68: 2049 | AS68: 0 | AT68: 0 | AU68: 0 | AV68: 0 | AW68: 0 | AX68: 0 | AY68: 0 | AZ68: 0 | BA68: 0 | BB68: 0 | BC68: 0 | BD68: 0 | BE68: 0
B69: TOTAL CONTRATS FONCTIONNEMENT ($) | J69: =SUMIF($I$25:$I67,"CF-Contrat fonctionnement",J25:J67)+SUMIF($I$25:$I67,"CP-Contrat service professionnel",J25:J67)+SUMIF($I$25:$I67,"CT-Contrat service technique",J25:J67) -> 0 | N69: =SUMIF($I$25:$I67,"CF-Contrat fonctionnement",N25:N67)+SUMIF($I$25:$I67,"CP-Contrat service professionnel",N25:N67)+SUMIF($I$25:$I67,"CT-Contrat service technique",N25:N67) -> 0 | O69: =SUMIF($I$25:$I67,"CF-Contrat fonctionnement",O25:O67)+SUMIF($I$25:$I67,"CP-Contrat service professionnel",O25:O67)+SUMIF($I$25:$I67,"CT-Contrat service technique",O25:O67) -> 0 | P69: =SUMIF($I$25:$I67,"CF-Contrat fonctionnement",P25:P67)+SUMIF($I$25:$I67,"CP-Contrat service professionnel",P25:P67)+SUMIF($I$25:$I67,"CT-Contrat service technique",P25:P67) -> 0 | Q69: =SUMIF($I$25:$I67,"CF-Contrat fonctionnement",Q25:Q67)+SUMIF($I$25:$I67,"CP-Contrat service professionnel",Q25:Q67)+SUMIF($I$25:$I67,"CT-Contrat service technique",Q25:Q67) -> 0 | R69: =SUMIF($I$25:$I67,"CF-Contrat fonctionnement",R25:R67)+SUMIF($I$25:$I67,"CP-Contrat service professionnel",R25:R67)+SUMIF($I$25:$I67,"CT-Contrat service technique",R25:R67) -> 0 | S69: =SUMIF($I$25:$I67,"CF-Contrat fonctionnement",S25:S67)+SUMIF($I$25:$I67,"CP-Contrat service professionnel",S25:S67)+SUMIF($I$25:$I67,"CT-Contrat service technique",S25:S67) -> 0 | T69: =SUMIF($I$25:$I67,"CF-Contrat fonctionnement",T25:T67)+SUMIF($I$25:$I67,"CP-Contrat service professionnel",T25:T67)+SUMIF($I$25:$I67,"CT-Contrat service technique",T25:T67) -> 0 | U69: =SUMIF($I$25:$I67,"CF-Contrat fonctionnement",U25:U67)+SUMIF($I$25:$I67,"CP-Contrat service professionnel",U25:U67)+SUMIF($I$25:$I67,"CT-Contrat service technique",U25:U67) -> 0 | V69: =SUMIF($I$25:$I67,"CF-Contrat fonctionnement",V25:V67)+SUMIF($I$25:$I67,"CP-Contrat service professionnel",V25:V67)+SUMIF($I$25:$I67,"CT-Contrat service technique",V25:V67) -> 0 | W69: =SUMIF($I$25:$I67,"CF-Contrat fonctionnement",W25:W67)+SUMIF($I$25:$I67,"CP-Contrat service professionnel",W25:W67)+SUMIF($I$25:$I67,"CT-Contrat service technique",W25:W67) -> 0 | X69: =SUMIF($I$25:$I67,"CF-Contrat fonctionnement",X25:X67)+SUMIF($I$25:$I67,"CP-Contrat service professionnel",X25:X67)+SUMIF($I$25:$I67,"CT-Contrat service technique",X25:X67) -> 0 | Y69: =SUMIF($I$25:$I67,"CF-Contrat fonctionnement",Y25:Y67)+SUMIF($I$25:$I67,"CP-Contrat service professionnel",Y25:Y67)+SUMIF($I$25:$I67,"CT-Contrat service technique",Y25:Y67) -> 0 | Z69: =SUMIF($I$25:$I67,"CF-Contrat fonctionnement",Z25:Z67)+SUMIF($I$25:$I67,"CP-Contrat service professionnel",Z25:Z67)+SUMIF($I$25:$I67,"CT-Contrat service technique",Z25:Z67) -> 0
B70: TOTAL CONTRATS IMMOBILISATION ($) | J70: =SUMIF(I25:I67,"CI-Contrat immobilisation",J25:J67) -> 0 | N70: =SUMIF($I$25:$I67,"CI-Contrat immobilisation",N25:N67) -> 0 | O70: =SUMIF($I$25:$I67,"CI-Contrat immobilisation",O25:O67) -> 0 | P70: =SUMIF($I$25:$I67,"CI-Contrat immobilisation",P25:P67) -> 0 | Q70: =SUMIF($I$25:$I67,"CI-Contrat immobilisation",Q25:Q67) -> 0 | R70: =SUMIF($I$25:$I67,"CI-Contrat immobilisation",R25:R67) -> 0 | S70: =SUMIF($I$25:$I67,"CI-Contrat immobilisation",S25:S67) -> 0 | T70: =SUMIF($I$25:$I67,"CI-Contrat immobilisation",T25:T67) -> 0 | U70: =SUMIF($I$25:$I67,"CI-Contrat immobilisation",U25:U67) -> 0 | V70: =SUMIF($I$25:$I67,"CI-Contrat immobilisation",V25:V67) -> 0 | W70: =SUMIF($I$25:$I67,"CI-Contrat immobilisation",W25:W67) -> 0 | X70: =SUMIF($I$25:$I67,"CI-Contrat immobilisation",X25:X67) -> 0 | Y70: =SUMIF($I$25:$I67,"CI-Contrat immobilisation",Y25:Y67) -> 0 | Z70: =SUMIF($I$25:$I67,"CI-Contrat immobilisation",Z25:Z67) -> 0
B71: TOTAL DES SUBVENTIONS ($) | J71: =SUMIF(I25:I67,"SU-Subvention",J25:J67) -> 11410182 | N71: =SUMIF($I$25:$I70,"SU-Subvention",N25:N40) -> 0 | O71: =SUMIF($I$25:$I70,"SU-Subvention",O25:O40) -> 923687 | P71: =SUMIF($I$25:$I70,"SU-Subvention",P25:P40) -> 5181186 | Q71: =SUMIF($I$25:$I70,"SU-Subvention",Q25:Q40) -> 476000 | R71: =SUMIF($I$25:$I70,"SU-Subvention",R25:R40) -> 1168742 | S71: =SUMIF($I$25:$I70,"SU-Subvention",S25:S40) -> 2200590 | T71: =SUMIF($I$25:$I70,"SU-Subvention",T25:T40) -> 208700 | U71: =SUMIF($I$25:$I70,"SU-Subvention",U25:U40) -> 0 | V71: =SUMIF($I$25:$I70,"SU-Subvention",V25:V40) -> 0 | W71: =SUMIF($I$25:$I70,"SU-Subvention",W25:W40) -> 0 | X71: =SUMIF($I$25:$I70,"SU-Subvention",X25:X40) -> 0 | Y71: =SUMIF($I$25:$I70,"SU-Subvention",Y25:Y40) -> 7749615 | Z71: =SUMIF($I$25:$I70,"SU-Subvention",Z25:Z40) -> 10158905

Sheet indicateurs quantitatifs
B2: PLAN D'ACTION 2013-2020 SUR LES CHANGEMENTS CLIMATIQUES | I2: =IF(Utilitaire!C10=0,"Les nouveaux indicateurs inscrits devront être soumis pour approbation au Conseil de gestion du Fonds vert.",IF(Utilitaire!C10=1,"Le premier indicateur présenté dans cette page a été convenu au préalable par des annexes 3 ou 4 de l’entente administrative. Les nouveaux indicateurs inscrits devront être soumis pour approbation au Conseil de gestion du Fonds vert.","Les "&Utilitaire!C10&" premiers indicateurs présentés dans cette page ont été convenus au préalable par des annexes 3 ou 4 de l’entente administrative. Les nouveaux indicateurs inscrits devront être soumis pour approbation au Conseil de gestion du Fonds vert.")) -> Les 11 premiers indicateurs présentés dans cette page ont été convenus au préalable par des annexes 3 ou 4 de l’entente administrative. Les nouveaux indicateurs inscrits devront être soumis pour approbation au Conseil de gestion du Fonds vert.
B3: ="Action " & Accueil!D58 -> Action en cours
B4: =Accueil!D55 -> 15.1 | D4: =Accueil!E55 -> Programme visant la réduction des émissions de GES par le développement du transport intermodal (PREGTI)
B5: Ministère porteur: | E5: =Accueil!$D$66 -> MTMDET
B6: Indicateurs quantitatifs
B22: SECTION 9 - INDICATEURS DE PERFORMANCE QUANTITATIFS | I22: =IF(OR(AND(MONTH(#REF!)>6,YEAR(#REF!)=VALUE(MID(I23,1,4))),YEAR(#REF!)>VALUE(MID(I23,1,4))),"Réel","Prévu") ->  | J22: =IF(OR(AND(MONTH(#REF!)>6,YEAR(#REF!)=VALUE(MID(J23,1,4))),YEAR(#REF!)>VALUE(MID(J23,1,4))),"Réel","Prévu") ->  | K22: =IF(OR(AND(MONTH(#REF!)>6,YEAR(#REF!)=VALUE(MID(K23,1,4))),YEAR(#REF!)>VALUE(MID(K23,1,4))),"Réel","Prévu") ->  | L22: =IF(OR(AND(MONTH(#REF!)>6,YEAR(#REF!)=VALUE(MID(L23,1,4))),YEAR(#REF!)>VALUE(MID(L23,1,4))),"Réel","Prévu") ->  | M22: =IF(OR(AND(MONTH(#REF!)>6,YEAR(#REF!)=VALUE(MID(M23,1,4))),YEAR(#REF!)>VALUE(MID(M23,1,4))),"Réel","Prévu") ->  | N22: =IF(OR(AND(MONTH(#REF!)>6,YEAR(#REF!)=VALUE(MID(N23,1,4))),YEAR(#REF!)>VALUE(MID(N23,1,4))),"Réel","Prévu") ->  | O22: =IF(OR(AND(MONTH(#REF!)>6,YEAR(#REF!)=VALUE(MID(O23,1,4))),YEAR(#REF!)>VALUE(MID(O23,1,4))),"Réel","Prévu") ->  | P22: =IF(OR(AND(MONTH(#REF!)>6,YEAR(#REF!)=VALUE(MID(P23,1,4))),YEAR(#REF!)>VALUE(MID(P23,1,4))),"Réel","Prévu") ->  | Q22: =IF(OR(AND(MONTH(#REF!)>6,YEAR(#REF!)=VALUE(MID(Q23,1,4))),YEAR(#REF!)>VALUE(MID(Q23,1,4))),"Réel","Prévu") ->  | R22: =IF(OR(AND(MONTH(#REF!)>6,YEAR(#REF!)=VALUE(MID(R23,1,4))),YEAR(#REF!)>VALUE(MID(R23,1,4))),"Réel","Prévu") ->  | S22: =IF(OR(AND(MONTH(#REF!)>6,YEAR(#REF!)=VALUE(MID(S23,1,4))),YEAR(#REF!)>VALUE(MID(S23,1,4))),"Réel","Prévu") ->  | T22: =MONTH(#REF!) -> 
B23: ANNÉE PRÉVUE D'ATTEINTE DE LA CIBLE | C23: CIBLE | D23: UNITÉ DE MESURE | E23: DESCRIPTION DE L'INDICATEUR | G23: TYPE D'INDICATEUR | I23: 2013-2014 | J23: 2014-2015 | K23: 2015-2016 | L23: 2016-2017 | M23: 2017-2018 | N23: 2018-2019 | O23: 2019-2020 | P23: 2020-2021 | Q23: 2021-2022 | R23: 2022-2023 | S23: 2023-2024 | T23: RÉSULTAT À COMPARER AVEC LA CIBLE
I24: Réel | J24: Réel | K24: Réel | L24: Réel | M24: Réel | N24: Réel | O24: Réel | P24: Réel | Q24: Réel | R24: Réel | S24: Réel
A25: 1 | B25: 2017 | C25: 6000000 | D25: $ | E25: Économie liée au coût de conservation des chaussées (couche d'usure) | G25: minimum à atteindre | K25: 75623 | L25: 79410 | T25: 155033
A26: 2 | B26: 2018 | C26: 8000000 | D26: $ | E26: Économie liée au coût de conservation des chaussées au Québec (couche d'usure) | G26: minimum à atteindre | K26: 75623 | L26: 79410 | M26: 79410 | T26: 234443
A27: 3 | B27: 2020 | C27: 12000000 | D27: $ | E27: Économie liée au coût de conservation des chaussées au Québec (couche d'usure) | G27: minimum à atteindre | K27: 75623 | L27: 79410 | M27: 79410 | T27: 234443
A28: 4 | B28: 2017 | C28: 110000 | D28: T/CO2 | E28: Réduction annuelle des émissions de gaz à effet de serre (GES) | G28: minimum à atteindre | J28: 18 | K28: 2093 | L28: 2204 | T28: 2204
A29: 5 | B29: 2020 | C29: 250000 | D29: T/CO2 | E29: Réduction annuelle des émissions de gaz à effet de serre (GES) | G29: minimum à atteindre | J29: 18 | K29: 2093 | L29: 2204 | M29: 2576 | T29: 2576
A30: 6 | B30: 2017 | C30: 1300000 | D30: tonnes | E30: Tonnage ferroviaire additionnel généré par les projets | G30: minimum à atteindre | K30: 52766 | L30: 56436 | T30: 109202
A31: 7 | B31: 2018 | C31: 1730000 | D31: tonnes | E31: Tonnage ferroviaire additionnel généré par les projets | G31: minimum à atteindre | K31: 52766 | L31: 56436 | M31: 56436 | T31: 165638
A32: 8 | B32: 2020 | C32: 2600000 | D32: tonnes | E32: Tonnage ferroviaire additionnel généré par les projets | G32: minimum à atteindre | K32: 52766 | L32: 56436 | M32: 56436 | T32: 165638
A33: 9 | B33: 2017 | C33: 250000 | D33: tonnes | E33: Tonnage portuaire (mode maritime) total généré par l’ensemble des projets | G33: minimum à atteindre
A34: 10 | B34: 2018 | C34: 330000 | D34: tonnes | E34: Tonnage portuaire (mode maritime) total généré par l'ensemble des projets | G34: minimum à atteindre
A35: 11 | B35: 2020 | C35: 500000 | D35: tonnes | E35: Tonnage portuaire (mode maritime) total généré par l'ensemble des projets | G35: minimum à atteindre
A36: 12
A37: 13
A38: 14
A39: 15
A40: 16
A41: 17
A42: 18
A43: 19
A44: 20
A45: tot | AR45: FALSE

Sheet Commentaires
B2: =Utilitaire!E8 -> PLAN D'ACTION 2013-2020 SUR LES CHANGEMENTS CLIMATIQUES | T2: COF
B3: ="Action " & Accueil!D58 -> Action en cours | T3: frais
B4: =Accueil!D55 -> 15.1 | C4: =Accueil!E55 -> Programme visant la réduction des émissions de GES par le développement du transport intermodal (PREGTI) | T4: ETC
B5: Ministère porteur: | D5: =Accueil!$D$66 -> MTMDET | T5: détail des projets
B6: Commentaires | T6: détail des projets (GES)
T7: bilan GES
T8: Indicateurs
T9: Toutes-Autre
T12: 2013-2014
T13: 2014-2015
T14: 2015-2016
T15: 2016-2017
T16: 2017-2018
T23: 2018-2019
B24: COMMENTAIRES | M24: Section concernée | O24: Année | Q24: Exercice | T24: 2019-2020
T25: 2020-2021
B26: Seulement 2 projets générant du tonnage portuaire supplémentaire ont été acceptés, mais les rapports de vérifications ne sont pas encore déposés. | M26: Indicateurs | T26: 2021-2022
B27: Certaines dates de derniers paiements ne sont pas indiquées car le projet a été annulé | M27: détail des projets | T27: 2022-2023
T28: 2023-2024
T32: juin
T33: décembre
